[Event "Titled Tuesday Blitz November 01 Late 2022"]
[White "Jaskolka, Tomasz"]
[Black "Sabar, Ethmane Daouda"]
[WhiteFideId "1170791"]
[BlackFideId "19600097"]
[WhiteElo "2126"]
[BlackElo "1950"]
[Result "1-0"]
[Round "06"]
[TimeControl "180+1"]
[Date "2022.11.02"]
[WhiteClock "0:00:14"]
[BlackClock "0:00:01"]

1. e4 {[%clk 0:03:00]}  c5 {[%clk 0:02:57]} 2. Nf3 {[%clk 0:02:59]}  Nc6 {[%clk 0:02:58]} 3. Bb5 {[%clk 0:02:59]}  e5 {[%clk 0:02:53]} 4. d3 {[%clk 0:02:55]}  Nd4 {[%clk 0:02:50]} 5. Nxd4 {[%clk 0:02:54]}  cxd4 {[%clk 0:02:51]} 6. O-O {[%clk 0:02:54]}  a6 {[%clk 0:02:49]} 7. Bc4 {[%clk 0:02:53]}  Nf6 {[%clk 0:02:48]} 8. f4 {[%clk 0:02:53]}  d6 {[%clk 0:02:47]} 9. c3 {[%clk 0:02:53]}  dxc3 {[%clk 0:02:46]} 10. Nxc3 {[%clk 0:02:53]}  h6 {[%clk 0:02:47]} 11. Nd5 {[%clk 0:02:41]}  Be7 {[%clk 0:02:21]} 12. Qf3 {[%clk 0:02:29]}  Be6 {[%clk 0:02:04]} 13. Nxf6+ {[%clk 0:02:25]}  Bxf6 {[%clk 0:02:05]} 14. Bxe6 {[%clk 0:02:25]}  fxe6 {[%clk 0:02:04]} 15. Qh5+ {[%clk 0:02:26]}  Kd7 {[%clk 0:01:48]} 16. Be3 {[%clk 0:02:17]}  exf4 {[%clk 0:01:44]} 17. Rxf4 {[%clk 0:02:14]}  e5 {[%clk 0:01:36]} 18. Rf2 {[%clk 0:02:08]}  Rc8 {[%clk 0:01:31]} 19. Qf7+ {[%clk 0:01:49]}  Qe7 {[%clk 0:01:27]} 20. Qd5 {[%clk 0:01:49]}  Rc6 {[%clk 0:01:18]} 21. b4 {[%clk 0:01:43]}  Rhc8 {[%clk 0:01:15]} 22. b5 {[%clk 0:01:42]}  axb5 {[%clk 0:01:15]} 23. Qxb5 {[%clk 0:01:41]}  Ke8 {[%clk 0:01:10]} 24. Raf1 {[%clk 0:01:39]}  Qd7 {[%clk 0:00:55]} 25. Bxh6 {[%clk 0:01:24]}  Rc2 {[%clk 0:00:53]} 26. Qxd7+ {[%clk 0:01:21]}  Kxd7 {[%clk 0:00:53]} 27. Rxc2 {[%clk 0:01:14]}  Rxc2 {[%clk 0:00:54]} 28. Bxg7 {[%clk 0:01:14]}  Bg5 {[%clk 0:00:48]} 29. g3 {[%clk 0:01:01]}  Be3+ {[%clk 0:00:47]} 30. Kh1 {[%clk 0:01:01]}  Rxa2 {[%clk 0:00:45]} 31. h4 {[%clk 0:01:01]}  b5 {[%clk 0:00:37]} 32. h5 {[%clk 0:00:43]}  b4 {[%clk 0:00:30]} 33. Rf7+ {[%clk 0:00:30]}  Kc6 {[%clk 0:00:27]} 34. h6 {[%clk 0:00:21]}  Bxh6 {[%clk 0:00:25]} 35. Bxh6 {[%clk 0:00:22]}  b3 {[%clk 0:00:26]} 36. Rf8 {[%clk 0:00:13]}  b2 {[%clk 0:00:20]} 37. Rb8 {[%clk 0:00:13]}  Ra1+ {[%clk 0:00:19]} 38. Kg2 {[%clk 0:00:13]}  b1=Q {[%clk 0:00:20]} 39. Rxb1 {[%clk 0:00:13]}  Rxb1 {[%clk 0:00:20]} 40. Kf3 {[%clk 0:00:14]}  Rd1 {[%clk 0:00:19]} 41. Ke2 {[%clk 0:00:14]}  Rg1 {[%clk 0:00:18]} 42. Kf2 {[%clk 0:00:14]}  Rd1 {[%clk 0:00:19]} 43. Ke2 {[%clk 0:00:15]}  Rg1 {[%clk 0:00:19]} 44. Kf3 {[%clk 0:00:15]}  Rd1 {[%clk 0:00:18]} 45. g4 {[%clk 0:00:13]}  Rxd3+ {[%clk 0:00:17]} 46. Ke2 {[%clk 0:00:13]}  Rg3 {[%clk 0:00:17]} 47. g5 {[%clk 0:00:13]}  d5 {[%clk 0:00:16]} 48. exd5+ {[%clk 0:00:13]}  Kxd5 {[%clk 0:00:17]} 49. Kf2 {[%clk 0:00:14]}  Rg4 {[%clk 0:00:16]} 50. Kf3 {[%clk 0:00:15]}  Rg1 {[%clk 0:00:16]} 51. Kf2 {[%clk 0:00:15]}  Rg4 {[%clk 0:00:15]} 52. Kf3 {[%clk 0:00:16]}  Rh4 {[%clk 0:00:14]} 53. Kg3 {[%clk 0:00:15]}  Rh1 {[%clk 0:00:13]} 54. Kg2 {[%clk 0:00:16]}  Rh5 {[%clk 0:00:13]} 55. Kg3 {[%clk 0:00:16]}  e4 {[%clk 0:00:13]} 56. Kg4 {[%clk 0:00:17]}  Rh1 {[%clk 0:00:13]} 57. Bg7 {[%clk 0:00:15]}  Rg1+ {[%clk 0:00:08]} 58. Kf4 {[%clk 0:00:15]}  Rf1+ {[%clk 0:00:07]} 59. Ke3 {[%clk 0:00:14]}  Rf3+ {[%clk 0:00:07]} 60. Ke2 {[%clk 0:00:14]}  Rg3 {[%clk 0:00:06]} 61. Bf6 {[%clk 0:00:15]}  Kc4 {[%clk 0:00:05]} 62. Kf2 {[%clk 0:00:14]}  Rf3+ {[%clk 0:00:03]} 63. Ke2 {[%clk 0:00:14]}  Rf5 {[%clk 0:00:01]} 64. Ke3 {[%clk 0:00:14]} 1-0


[Site "https://www.chess.com"]

[Event "Titled Tuesday Blitz November 01 Late 2022"]
[White "Jimenez Almeida, Luis David"]
[Black "Buchenau, Frank"]
[WhiteFideId "22242244"]
[BlackFideId "4604350"]
[WhiteElo "2158"]
[BlackElo "2157"]
[Result "0-1"]
[Round "06"]
[TimeControl "180+1"]
[Date "2022.11.02"]
[WhiteClock "0:00:09"]
[BlackClock "0:00:45"]

1. e4 {[%clk 0:03:00]}  e6 {[%clk 0:02:58]} 2. Nf3 {[%clk 0:02:59]}  d5 {[%clk 0:02:55]} 3. Nc3 {[%clk 0:02:59]}  Nf6 {[%clk 0:02:53]} 4. e5 {[%clk 0:02:58]}  Nfd7 {[%clk 0:02:53]} 5. d4 {[%clk 0:02:58]}  c5 {[%clk 0:02:53]} 6. dxc5 {[%clk 0:02:59]}  Nc6 {[%clk 0:02:53]} 7. Bf4 {[%clk 0:02:59]}  Bxc5 {[%clk 0:02:52]} 8. Bd3 {[%clk 0:02:59]}  f6 {[%clk 0:02:50]} 9. exf6 {[%clk 0:02:57]}  Qxf6 {[%clk 0:02:50]} 10. Bg5 {[%clk 0:02:57]}  Qf7 {[%clk 0:02:50]} 11. Qe2 {[%clk 0:02:55]}  O-O {[%clk 0:02:48]} 12. O-O-O {[%clk 0:02:50]}  a6 {[%clk 0:02:36]} 13. h4 {[%clk 0:02:48]}  h6 {[%clk 0:02:27]} 14. Bd2 {[%clk 0:02:38]}  b5 {[%clk 0:02:13]} 15. Rh3 {[%clk 0:02:28]}  Nf6 {[%clk 0:02:09]} 16. Ng5 {[%clk 0:02:05]}  Qe7 {[%clk 0:01:52]} 17. Rg3 {[%clk 0:01:51]}  e5 {[%clk 0:01:42]} 18. Bg6 {[%clk 0:01:43]}  Nd4 {[%clk 0:01:32]} 19. Qf1 {[%clk 0:01:22]}  Bf5 {[%clk 0:01:29]} 20. Bxf5 {[%clk 0:01:13]}  Nxf5 {[%clk 0:01:30]} 21. Rh3 {[%clk 0:01:13]}  b4 {[%clk 0:01:12]} 22. Na4 {[%clk 0:00:47]}  Rfc8 {[%clk 0:00:59]} 23. Nxc5 {[%clk 0:00:41]}  Qxc5 {[%clk 0:00:57]} 24. c3 {[%clk 0:00:36]}  hxg5 {[%clk 0:00:51]} 25. hxg5 {[%clk 0:00:35]}  Ne4 {[%clk 0:00:50]} 26. Kb1 {[%clk 0:00:11]}  bxc3 {[%clk 0:00:50]} 27. Bxc3 {[%clk 0:00:11]}  d4 {[%clk 0:00:48]} 28. Qd3 {[%clk 0:00:09]}  dxc3 {[%clk 0:00:45]} 0-1


[Site "https://www.chess.com"]

[Event "Titled Tuesday Blitz November 01 Late 2022"]
[White "Kanyamarala, Trisha"]
[Black "Djokic, Mihailo"]
[WhiteFideId "45004722"]
[BlackFideId "976440"]
[WhiteElo "2099"]
[BlackElo "2315"]
[Result "0-1"]
[Round "06"]
[TimeControl "180+1"]
[Date "2022.11.02"]
[WhiteClock "0:00:08"]
[BlackClock "0:00:27"]

1. c4 {[%clk 0:03:00]}  e5 {[%clk 0:02:51]} 2. Nc3 {[%clk 0:02:58]}  Nc6 {[%clk 0:02:50]} 3. g3 {[%clk 0:02:52]}  Bc5 {[%clk 0:02:50]} 4. Bg2 {[%clk 0:02:52]}  d6 {[%clk 0:02:50]} 5. Nf3 {[%clk 0:02:52]}  Bf5 {[%clk 0:02:50]} 6. O-O {[%clk 0:02:49]}  Qd7 {[%clk 0:02:48]} 7. Re1 {[%clk 0:02:43]}  h5 {[%clk 0:02:48]} 8. h4 {[%clk 0:02:41]}  Nf6 {[%clk 0:02:46]} 9. a3 {[%clk 0:02:40]}  a6 {[%clk 0:02:46]} 10. b4 {[%clk 0:02:40]}  Ba7 {[%clk 0:02:41]} 11. e3 {[%clk 0:02:31]}  Bg4 {[%clk 0:02:29]} 12. d4 {[%clk 0:02:28]}  O-O {[%clk 0:02:24]} 13. dxe5 {[%clk 0:02:19]}  dxe5 {[%clk 0:02:10]} 14. Qxd7 {[%clk 0:02:18]}  Nxd7 {[%clk 0:02:09]} 15. Nd5 {[%clk 0:02:17]}  e4 {[%clk 0:01:45]} 16. Ng5 {[%clk 0:02:13]}  Nce5 {[%clk 0:01:39]} 17. Bxe4 {[%clk 0:01:49]}  f6 {[%clk 0:01:28]} 18. Ne7+ {[%clk 0:01:33]}  Kh8 {[%clk 0:01:25]} 19. Nh7 {[%clk 0:01:24]}  Rfe8 {[%clk 0:01:17]} 20. Ng6+ {[%clk 0:01:15]}  Nxg6 {[%clk 0:01:16]} 21. Bxg6 {[%clk 0:01:15]}  Ne5 {[%clk 0:01:03]} 22. Bxe8 {[%clk 0:01:02]}  Rxe8 {[%clk 0:01:01]} 23. Nxf6 {[%clk 0:01:01]}  gxf6 {[%clk 0:00:58]} 24. Kg2 {[%clk 0:00:56]}  Bf3+ {[%clk 0:00:54]} 25. Kh3 {[%clk 0:00:43]}  Nxc4 {[%clk 0:00:54]} 26. a4 {[%clk 0:00:37]}  Re5 {[%clk 0:00:44]} 27. Ba3 {[%clk 0:00:33]}  Rf5 {[%clk 0:00:38]} 28. b5 {[%clk 0:00:25]}  axb5 {[%clk 0:00:34]} 29. axb5 {[%clk 0:00:25]}  Bb6 {[%clk 0:00:30]} 30. Bb4 {[%clk 0:00:22]}  Ne5 {[%clk 0:00:28]} 31. Ra8+ {[%clk 0:00:20]}  Kh7 {[%clk 0:00:28]} 32. Rc1 {[%clk 0:00:14]}  Bg4+ {[%clk 0:00:27]} 33. Kg2 {[%clk 0:00:13]}  Nd3 {[%clk 0:00:27]} 34. Rb1 {[%clk 0:00:11]}  Rxf2+ {[%clk 0:00:27]} 35. Kg1 {[%clk 0:00:11]}  Bxe3 {[%clk 0:00:27]} 36. Rb3 {[%clk 0:00:10]}  Rb2+ {[%clk 0:00:26]} 37. Kf1 {[%clk 0:00:08]}  Bh3# {[%clk 0:00:27]} 0-1


[Site "https://www.chess.com"]

[Event "Titled Tuesday Blitz November 01 Late 2022"]
[White "Karas, Marek"]
[Black "Matinian, Nikita"]
[WhiteFideId "14928558"]
[BlackFideId "24129100"]
[WhiteElo "2220"]
[BlackElo "2422"]
[Result "0-1"]
[Round "06"]
[TimeControl "180+1"]
[Date "2022.11.02"]
[WhiteClock "0:00:01"]
[BlackClock "0:01:44"]

1. d4 {[%clk 0:03:00]}  Nf6 {[%clk 0:02:58]} 2. Bf4 {[%clk 0:03:00]}  g6 {[%clk 0:02:59]} 3. Nc3 {[%clk 0:03:00]}  d5 {[%clk 0:02:59]} 4. e3 {[%clk 0:03:00]}  c6 {[%clk 0:02:59]} 5. h4 {[%clk 0:03:01]}  h5 {[%clk 0:02:59]} 6. Be2 {[%clk 0:03:01]}  Bg7 {[%clk 0:02:59]} 7. Nf3 {[%clk 0:03:01]}  Qb6 {[%clk 0:02:59]} 8. Rb1 {[%clk 0:02:59]}  a5 {[%clk 0:02:55]} 9. Ne5 {[%clk 0:02:58]}  a4 {[%clk 0:02:54]} 10. a3 {[%clk 0:02:58]}  Bf5 {[%clk 0:02:52]} 11. Bd3 {[%clk 0:02:39]}  Bxd3 {[%clk 0:02:50]} 12. Qxd3 {[%clk 0:02:40]}  Nbd7 {[%clk 0:02:50]} 13. O-O {[%clk 0:02:37]}  Nxe5 {[%clk 0:02:47]} 14. Bxe5 {[%clk 0:02:37]}  O-O {[%clk 0:02:45]} 15. Rfe1 {[%clk 0:02:30]}  Qa6 {[%clk 0:02:44]} 16. Qxa6 {[%clk 0:02:28]}  Rxa6 {[%clk 0:02:44]} 17. f3 {[%clk 0:02:18]}  Nd7 {[%clk 0:02:42]} 18. Bxg7 {[%clk 0:02:17]}  Kxg7 {[%clk 0:02:43]} 19. e4 {[%clk 0:02:16]}  e6 {[%clk 0:02:44]} 20. Nd1 {[%clk 0:02:06]}  Rd8 {[%clk 0:02:40]} 21. c3 {[%clk 0:02:05]}  dxe4 {[%clk 0:02:38]} 22. fxe4 {[%clk 0:02:00]}  c5 {[%clk 0:02:39]} 23. Nf2 {[%clk 0:01:51]}  cxd4 {[%clk 0:02:35]} 24. cxd4 {[%clk 0:01:52]}  Nf6 {[%clk 0:02:35]} 25. Rbd1 {[%clk 0:01:45]}  Rb6 {[%clk 0:02:36]} 26. Rd2 {[%clk 0:01:43]}  Rb3 {[%clk 0:02:35]} 27. Rc1 {[%clk 0:01:20]}  b5 {[%clk 0:02:29]} 28. Re1 {[%clk 0:00:59]}  b4 {[%clk 0:02:29]} 29. axb4 {[%clk 0:00:59]}  Rxb4 {[%clk 0:02:30]} 30. Red1 {[%clk 0:00:58]}  Rdb8 {[%clk 0:02:28]} 31. Ra1 {[%clk 0:00:47]}  Ne8 {[%clk 0:02:04]} 32. g3 {[%clk 0:00:38]}  Nd6 {[%clk 0:02:03]} 33. d5 {[%clk 0:00:33]}  Nc4 {[%clk 0:01:57]} 34. Rd4 {[%clk 0:00:26]}  Nxb2 {[%clk 0:01:56]} 35. Rxb4 {[%clk 0:00:20]}  Rxb4 {[%clk 0:01:57]} 36. d6 {[%clk 0:00:12]}  e5 {[%clk 0:01:57]} 37. Ra2 {[%clk 0:00:07]}  Kf6 {[%clk 0:01:51]} 38. d7 {[%clk 0:00:02]}  Ke7 {[%clk 0:01:51]} 39. g4 {[%clk 0:00:02]}  Kxd7 {[%clk 0:01:49]} 40. gxh5 {[%clk 0:00:02]}  gxh5 {[%clk 0:01:50]} 41. Nh3 {[%clk 0:00:02]}  Nc4 {[%clk 0:01:44]} 42. Ng5 {[%clk 0:00:02]}  a3 {[%clk 0:01:44]} 43. Nxf7 {[%clk 0:00:01]}  Rb1+ {[%clk 0:01:44]} 44. Kf2 {[%clk 0:00:01]}  Rb2+ {[%clk 0:01:45]} 45. Rxb2 {[%clk 0:00:01]}  axb2 {[%clk 0:01:44]} 0-1


[Site "https://www.chess.com"]

[Event "Titled Tuesday Blitz November 01 Late 2022"]
[White "Khandelwal, Ankush"]
[Black "Hughes, Tyler B"]
[WhiteFideId "413470"]
[BlackFideId "2026775"]
[WhiteElo "2271"]
[BlackElo "2296"]
[Result "1-0"]
[Round "06"]
[TimeControl "180+1"]
[Date "2022.11.02"]
[WhiteClock "0:00:45"]
[BlackClock "0:00:15"]

1. e4 {[%clk 0:02:37]}  c6 {[%clk 0:01:56]} 2. d4 {[%clk 0:02:18]}  d5 {[%clk 0:01:55]} 3. e5 {[%clk 0:02:18]}  Bf5 {[%clk 0:01:54]} 4. h4 {[%clk 0:02:18]}  h5 {[%clk 0:01:54]} 5. Bd3 {[%clk 0:02:18]}  Bxd3 {[%clk 0:01:54]} 6. Qxd3 {[%clk 0:02:19]}  e6 {[%clk 0:01:54]} 7. Bg5 {[%clk 0:02:19]}  Qb6 {[%clk 0:01:54]} 8. Nd2 {[%clk 0:02:17]}  c5 {[%clk 0:01:54]} 9. c4 {[%clk 0:02:15]}  Nc6 {[%clk 0:01:52]} 10. Ngf3 {[%clk 0:02:15]}  Nb4 {[%clk 0:01:49]} 11. Qc3 {[%clk 0:01:50]}  cxd4 {[%clk 0:01:48]} 12. Qb3 {[%clk 0:01:41]}  a5 {[%clk 0:01:26]} 13. a3 {[%clk 0:01:38]}  a4 {[%clk 0:01:20]} 14. axb4 {[%clk 0:01:30]}  axb3 {[%clk 0:01:20]} 15. Rxa8+ {[%clk 0:01:31]}  Kd7 {[%clk 0:01:18]} 16. Rxf8 {[%clk 0:01:31]}  Qxb4 {[%clk 0:01:14]} 17. Rd8+ {[%clk 0:01:31]}  Kc7 {[%clk 0:01:14]} 18. cxd5 {[%clk 0:01:31]}  f6 {[%clk 0:01:13]} 19. exf6 {[%clk 0:01:23]}  gxf6 {[%clk 0:01:14]} 20. Bxf6 {[%clk 0:01:20]}  Nxf6 {[%clk 0:01:06]} 21. Rxh8 {[%clk 0:01:20]}  Ne4 {[%clk 0:00:55]} 22. dxe6 {[%clk 0:01:19]}  Kd6 {[%clk 0:00:55]} 23. Rd8+ {[%clk 0:01:14]}  Ke7 {[%clk 0:00:52]} 24. Rd7+ {[%clk 0:01:11]}  Kxe6 {[%clk 0:00:52]} 25. Rxd4 {[%clk 0:01:11]}  Qb5 {[%clk 0:00:45]} 26. Rxe4+ {[%clk 0:01:09]}  Kf6 {[%clk 0:00:46]} 27. Re5 {[%clk 0:01:05]}  Qd3 {[%clk 0:00:45]} 28. Re3 {[%clk 0:01:02]}  Qa6 {[%clk 0:00:44]} 29. Rh3 {[%clk 0:00:57]}  Qa1+ {[%clk 0:00:41]} 30. Ke2 {[%clk 0:00:57]}  Qa6+ {[%clk 0:00:41]} 31. Rd3 {[%clk 0:00:57]}  Qe6+ {[%clk 0:00:41]} 32. Kf1 {[%clk 0:00:55]}  Qa6 {[%clk 0:00:41]} 33. Ng5 {[%clk 0:00:54]}  Qa1+ {[%clk 0:00:40]} 34. Ke2 {[%clk 0:00:54]}  Qxb2 {[%clk 0:00:36]} 35. Rhf3+ {[%clk 0:00:54]}  Ke7 {[%clk 0:00:26]} 36. Rf7+ {[%clk 0:00:51]}  Ke8 {[%clk 0:00:26]} 37. Re3+ {[%clk 0:00:51]}  Kd8 {[%clk 0:00:25]} 38. Ree7 {[%clk 0:00:45]}  Qc3 {[%clk 0:00:15]} 39. Ne6+ {[%clk 0:00:45]}  Kc8 {[%clk 0:00:15]} 40. Re8# {[%clk 0:00:45]} 1-0


[Site "https://www.chess.com"]

[Event "Titled Tuesday Blitz November 01 Late 2022"]
[White "Korchmar, Vasiliy"]
[Black "Estrada Nieto, Julian"]
[WhiteFideId "24131750"]
[BlackFideId "5101018"]
[WhiteElo "2370"]
[BlackElo "2252"]
[Result "1-0"]
[Round "06"]
[TimeControl "180+1"]
[Date "2022.11.02"]
[WhiteClock "0:00:10"]
[BlackClock "0:00:08"]

1. e4 {[%clk 0:03:00]}  e5 {[%clk 0:03:00]} 2. Nf3 {[%clk 0:03:01]}  Nc6 {[%clk 0:03:00]} 3. Nc3 {[%clk 0:03:01]}  Nf6 {[%clk 0:03:00]} 4. h3 {[%clk 0:03:01]}  d5 {[%clk 0:02:50]} 5. exd5 {[%clk 0:03:01]}  Nxd5 {[%clk 0:02:50]} 6. Bb5 {[%clk 0:03:01]}  Nxc3 {[%clk 0:02:51]} 7. bxc3 {[%clk 0:03:02]}  Bd6 {[%clk 0:02:51]} 8. d4 {[%clk 0:03:03]}  exd4 {[%clk 0:02:47]} 9. O-O {[%clk 0:03:02]}  O-O {[%clk 0:02:46]} 10. cxd4 {[%clk 0:03:02]}  Bf5 {[%clk 0:02:42]} 11. c4 {[%clk 0:03:02]}  Be4 {[%clk 0:02:31]} 12. Bb2 {[%clk 0:02:33]}  a6 {[%clk 0:02:12]} 13. Ba4 {[%clk 0:02:29]}  Na5 {[%clk 0:02:04]} 14. Nd2 {[%clk 0:02:00]}  Bd3 {[%clk 0:01:55]} 15. c5 {[%clk 0:01:51]}  Bxf1 {[%clk 0:01:47]} 16. Nxf1 {[%clk 0:01:26]}  Be7 {[%clk 0:01:31]} 17. Ne3 {[%clk 0:01:26]}  b5 {[%clk 0:01:16]} 18. Bc2 {[%clk 0:01:25]}  Bf6 {[%clk 0:00:57]} 19. Bd3 {[%clk 0:01:04]}  Nc6 {[%clk 0:00:53]} 20. Be4 {[%clk 0:01:00]}  Qd7 {[%clk 0:00:51]} 21. Qf3 {[%clk 0:00:56]}  Nxd4 {[%clk 0:00:47]} 22. Bxd4 {[%clk 0:00:55]}  Qxd4 {[%clk 0:00:47]} 23. Rd1 {[%clk 0:00:55]}  Qxc5 {[%clk 0:00:42]} 24. Bxa8 {[%clk 0:00:54]}  Bd4 {[%clk 0:00:27]} 25. Bd5 {[%clk 0:00:38]}  Bxe3 {[%clk 0:00:27]} 26. fxe3 {[%clk 0:00:38]}  Qe7 {[%clk 0:00:21]} 27. e4 {[%clk 0:00:31]}  g6 {[%clk 0:00:21]} 28. Qc3 {[%clk 0:00:29]}  c5 {[%clk 0:00:18]} 29. Rf1 {[%clk 0:00:27]}  b4 {[%clk 0:00:16]} 30. Qc4 {[%clk 0:00:27]}  Kg7 {[%clk 0:00:14]} 31. Qxa6 {[%clk 0:00:26]}  Qe5 {[%clk 0:00:10]} 32. Qa7 {[%clk 0:00:23]}  Qd4+ {[%clk 0:00:09]} 33. Kh1 {[%clk 0:00:23]}  Kh6 {[%clk 0:00:07]} 34. Qe7 {[%clk 0:00:17]}  Kg7 {[%clk 0:00:06]} 35. Rxf7+ {[%clk 0:00:17]}  Rxf7 {[%clk 0:00:06]} 36. Qxf7+ {[%clk 0:00:18]}  Kh6 {[%clk 0:00:06]} 37. Qf8+ {[%clk 0:00:18]}  Kg5 {[%clk 0:00:06]} 38. Qe7+ {[%clk 0:00:14]}  Kh6 {[%clk 0:00:06]} 39. Qf8+ {[%clk 0:00:08]}  Kg5 {[%clk 0:00:06]} 40. Qf1 {[%clk 0:00:07]}  Qc3 {[%clk 0:00:05]} 41. Qd1 {[%clk 0:00:05]}  Kf6 {[%clk 0:00:04]} 42. Qf3+ {[%clk 0:00:05]}  Ke5 {[%clk 0:00:04]} 43. Qxc3+ {[%clk 0:00:04]}  bxc3 {[%clk 0:00:03]} 44. Bb3 {[%clk 0:00:04]}  Kd4 {[%clk 0:00:03]} 45. a4 {[%clk 0:00:04]}  c4 {[%clk 0:00:04]} 46. Bc2 {[%clk 0:00:04]}  Ke3 {[%clk 0:00:04]} 47. a5 {[%clk 0:00:05]}  Kd2 {[%clk 0:00:05]} 48. Ba4 {[%clk 0:00:05]}  c2 {[%clk 0:00:05]} 49. Bxc2 {[%clk 0:00:05]}  Kxc2 {[%clk 0:00:06]} 50. a6 {[%clk 0:00:06]}  Kd3 {[%clk 0:00:06]} 51. a7 {[%clk 0:00:07]}  c3 {[%clk 0:00:07]} 52. a8=Q {[%clk 0:00:08]}  c2 {[%clk 0:00:08]} 53. Qd5+ {[%clk 0:00:08]}  Ke2 {[%clk 0:00:08]} 54. Qc4+ {[%clk 0:00:08]}  Kd1 {[%clk 0:00:08]} 55. Qxc2+ {[%clk 0:00:09]}  Kxc2 {[%clk 0:00:08]} 56. e5 {[%clk 0:00:10]} 1-0


[Site "https://www.chess.com"]

[Event "Titled Tuesday Blitz November 01 Late 2022"]
[White "Krzywda, Andrzej"]
[Black "Danielyan, Vahe"]
[WhiteFideId "1114565"]
[BlackFideId "13304828"]
[WhiteElo "2149"]
[BlackElo "2421"]
[Result "0-1"]
[Round "06"]
[TimeControl "180+1"]
[Date "2022.11.02"]
[WhiteClock "0:00:09"]
[BlackClock "0:00:42"]

1. d4 {[%clk 0:03:00]}  g6 {[%clk 0:02:58]} 2. e4 {[%clk 0:02:58]}  Bg7 {[%clk 0:02:57]} 3. Nc3 {[%clk 0:02:57]}  c6 {[%clk 0:02:58]} 4. Nf3 {[%clk 0:02:53]}  d6 {[%clk 0:02:54]} 5. a4 {[%clk 0:02:52]}  Nf6 {[%clk 0:02:54]} 6. Be2 {[%clk 0:02:52]}  O-O {[%clk 0:02:54]} 7. O-O {[%clk 0:02:53]}  a5 {[%clk 0:02:55]} 8. Re1 {[%clk 0:02:51]}  Na6 {[%clk 0:02:54]} 9. h3 {[%clk 0:02:50]}  Nb4 {[%clk 0:02:54]} 10. Be3 {[%clk 0:02:50]}  Be6 {[%clk 0:02:48]} 11. Ng5 {[%clk 0:02:43]}  Bd7 {[%clk 0:02:47]} 12. e5 {[%clk 0:02:33]}  dxe5 {[%clk 0:02:48]} 13. dxe5 {[%clk 0:02:33]}  Nfd5 {[%clk 0:02:48]} 14. Nxd5 {[%clk 0:02:24]}  Nxd5 {[%clk 0:02:49]} 15. Bd4 {[%clk 0:02:22]}  Bf5 {[%clk 0:02:48]} 16. g4 {[%clk 0:02:16]}  Bc8 {[%clk 0:02:48]} 17. Qd2 {[%clk 0:02:05]}  Qc7 {[%clk 0:02:44]} 18. f4 {[%clk 0:02:03]}  Rd8 {[%clk 0:02:43]} 19. Rad1 {[%clk 0:02:00]}  Nb4 {[%clk 0:02:36]} 20. Qc3 {[%clk 0:01:42]}  h6 {[%clk 0:02:29]} 21. Nxf7 {[%clk 0:01:38]}  Kxf7 {[%clk 0:02:23]} 22. e6+ {[%clk 0:01:37]}  Bxe6 {[%clk 0:02:23]} 23. Bxg7 {[%clk 0:01:35]}  Nd5 {[%clk 0:02:21]} 24. Qe5 {[%clk 0:01:27]}  Qxe5 {[%clk 0:02:13]} 25. Bxe5 {[%clk 0:01:28]}  Nb4 {[%clk 0:02:13]} 26. c3 {[%clk 0:01:18]}  Nd5 {[%clk 0:02:12]} 27. Bf3 {[%clk 0:01:17]}  Rd7 {[%clk 0:02:04]} 28. Rd2 {[%clk 0:01:16]}  Rad8 {[%clk 0:02:04]} 29. Red1 {[%clk 0:01:17]}  Nb6 {[%clk 0:02:02]} 30. Rxd7 {[%clk 0:01:10]}  Rxd7 {[%clk 0:02:03]} 31. Rxd7 {[%clk 0:01:09]}  Bxd7 {[%clk 0:02:04]} 32. b3 {[%clk 0:01:06]}  Be6 {[%clk 0:02:02]} 33. c4 {[%clk 0:01:04]}  Nd7 {[%clk 0:02:00]} 34. Bd4 {[%clk 0:01:03]}  c5 {[%clk 0:01:54]} 35. Be3 {[%clk 0:01:00]}  b6 {[%clk 0:01:52]} 36. Kf2 {[%clk 0:01:00]}  Nf6 {[%clk 0:01:46]} 37. Ke2 {[%clk 0:00:57]}  h5 {[%clk 0:01:44]} 38. f5 {[%clk 0:00:53]}  gxf5 {[%clk 0:01:42]} 39. gxh5 {[%clk 0:00:53]}  Nd7 {[%clk 0:01:39]} 40. Bf4 {[%clk 0:00:51]}  Kf6 {[%clk 0:01:32]} 41. Bc6 {[%clk 0:00:50]}  Ne5 {[%clk 0:01:31]} 42. Be8 {[%clk 0:00:45]}  Nf7 {[%clk 0:01:08]} 43. Bc7 {[%clk 0:00:41]}  Nd6 {[%clk 0:01:08]} 44. Bc6 {[%clk 0:00:37]}  Bf7 {[%clk 0:00:45]} 45. Bxb6 {[%clk 0:00:30]}  Bxh5+ {[%clk 0:00:45]} 46. Ke3 {[%clk 0:00:30]}  e5 {[%clk 0:00:45]} 47. Bxa5 {[%clk 0:00:23]}  f4+ {[%clk 0:00:46]} 48. Kf2 {[%clk 0:00:20]}  e4 {[%clk 0:00:46]} 49. Bd2 {[%clk 0:00:18]}  Ke5 {[%clk 0:00:47]} 50. a5 {[%clk 0:00:18]}  Kd4 {[%clk 0:00:47]} 51. a6 {[%clk 0:00:18]}  e3+ {[%clk 0:00:48]} 52. Bxe3+ {[%clk 0:00:18]}  fxe3+ {[%clk 0:00:49]} 53. Ke1 {[%clk 0:00:18]}  Nc8 {[%clk 0:00:41]} 54. h4 {[%clk 0:00:13]}  Na7 {[%clk 0:00:41]} 55. Bd7 {[%clk 0:00:14]}  Kc3 {[%clk 0:00:41]} 56. Be8 {[%clk 0:00:08]}  Bxe8 {[%clk 0:00:40]} 57. Ke2 {[%clk 0:00:09]}  Kxb3 {[%clk 0:00:40]} 58. Kxe3 {[%clk 0:00:09]}  Kxc4 {[%clk 0:00:41]} 59. Ke4 {[%clk 0:00:09]}  Kb3 {[%clk 0:00:41]} 60. Ke5 {[%clk 0:00:09]}  c4 {[%clk 0:00:42]} 61. Kd6 {[%clk 0:00:09]}  c3 {[%clk 0:00:42]} 0-1


[Site "https://www.chess.com"]